[Event "Early-Titled-Tuesday-Blitz-January-30-2024"]
[Site "Chess.com"]
[Date "2024.01.30"]
[Round "3"]
[White "chedimir"]
[Black "crazy_but_lazy"]
[Result "0-1"]
[WhiteElo "2331"]
[BlackElo "2585"]
[TimeControl "180+1"]
[EndTime "8:31:09 PST"]
[Termination "crazy_but_lazy won on time"]

1. e4 {[%clk 0:03:00.4]} 1... c6 {[%clk 0:02:58.9]} 2. d4 {[%clk 0:02:59.4]}
2... d5 {[%clk 0:02:59.4]} 3. e5 {[%clk 0:02:59.3]} 3... c5 {[%clk 0:02:57.5]}
4. dxc5 {[%clk 0:02:58.2]} 4... e6 {[%clk 0:02:57.2]} 5. Nf3 {[%clk 0:02:57.5]}
5... Bxc5 {[%clk 0:02:55.2]} 6. Bd3 {[%clk 0:02:56.5]} 6... Nc6 {[%clk
0:02:47.1]} 7. O-O {[%clk 0:02:52.7]} 7... f6 {[%clk 0:02:43]} 8. Bf4 {[%clk
0:02:45.4]} 8... fxe5 {[%clk 0:02:32.9]} 9. Nxe5 {[%clk 0:02:43.6]} 9... Nxe5
{[%clk 0:02:33.2]} 10. Bxe5 {[%clk 0:02:43.2]} 10... Qg5 {[%clk 0:02:33.4]} 11.
Qe2 {[%clk 0:02:28.4]} 11... Nf6 {[%clk 0:02:32.7]} 12. Nd2 {[%clk 0:02:23.5]}
12... O-O {[%clk 0:02:32.5]} 13. Nf3 {[%clk 0:02:22]} 13... Qh5 {[%clk
0:02:31.6]} 14. h3 {[%clk 0:02:21.5]} 14... Bd7 {[%clk 0:02:25.4]} 15. Rae1
{[%clk 0:02:14.6]} 15... Rae8 {[%clk 0:02:25]} 16. c3 {[%clk 0:01:57.5]} 16...
Ne4 {[%clk 0:02:03.8]} 17. Bd4 {[%clk 0:01:14.1]} 17... Bxd4 {[%clk 0:00:48.1]}
18. cxd4 {[%clk 0:01:12.4]} 18... Rxf3 {[%clk 0:00:40.5]} 19. Bxe4 {[%clk
0:00:51]} 19... dxe4 {[%clk 0:00:33.5]} 20. gxf3 {[%clk 0:00:48.3]} 20... exf3
{[%clk 0:00:33.9]} 21. Qe5 {[%clk 0:00:46.3]} 21... Qxh3 {[%clk 0:00:33.5]} 22.
Qg3 {[%clk 0:00:43.8]} 22... Qxg3+ {[%clk 0:00:30.6]} 23. fxg3 {[%clk
0:00:43.1]} 23... Bc6 {[%clk 0:00:31.1]} 24. Kf2 {[%clk 0:00:41.8]} 24... Kf7
{[%clk 0:00:27.4]} 25. Re5 {[%clk 0:00:38.7]} 25... Rd8 {[%clk 0:00:26.3]} 26.
Rd1 {[%clk 0:00:38.1]} 26... Bd5 {[%clk 0:00:25.8]} 27. a3 {[%clk 0:00:35.5]}
27... Rc8 {[%clk 0:00:25.9]} 28. Rd2 {[%clk 0:00:35.3]} 28... Rc1 {[%clk
0:00:26.5]} 29. Re1 {[%clk 0:00:30.5]} 29... Rc4 {[%clk 0:00:22.1]} 30. Re5
{[%clk 0:00:25.6]} 30... h6 {[%clk 0:00:20.5]} 31. Re1 {[%clk 0:00:16.5]} 31...
Kf6 {[%clk 0:00:20.3]} 32. Re3 {[%clk 0:00:15.9]} 32... b5 {[%clk 0:00:16.3]}
33. Rc3 {[%clk 0:00:15.5]} 33... Kf5 {[%clk 0:00:13.9]} 34. Rxc4 {[%clk
0:00:12.4]} 34... bxc4 {[%clk 0:00:14.8]} 35. Rd1 {[%clk 0:00:11.5]} 35... Ke4
{[%clk 0:00:13.2]} 36. Rd2 {[%clk 0:00:10.2]} 36... a5 {[%clk 0:00:12.8]} 37.
Rd1 {[%clk 0:00:09]} 37... Kf5 {[%clk 0:00:12.2]} 38. Re1 {[%clk 0:00:08.7]}
38... Kg4 {[%clk 0:00:11.8]} 39. Rh1 {[%clk 0:00:07.1]} 39... Kf5 {[%clk
0:00:12]} 40. Re1 {[%clk 0:00:06.8]} 40... h5 {[%clk 0:00:11.1]} 41. Rh1 {[%clk
0:00:06.6]} 41... g6 {[%clk 0:00:10.8]} 42. Re1 {[%clk 0:00:06]} 42... Kg4
{[%clk 0:00:09.9]} 43. Rh1 {[%clk 0:00:05.4]} 43... g5 {[%clk 0:00:09.6]} 44.
Rg1 {[%clk 0:00:05.1]} 44... Be4 {[%clk 0:00:08.5]} 45. Re1 {[%clk 0:00:04.5]}
45... Bd5 {[%clk 0:00:08.9]} 46. Rg1 {[%clk 0:00:04.5]} 46... a4 {[%clk
0:00:09.4]} 47. Re1 {[%clk 0:00:04.3]} 47... h4 {[%clk 0:00:09.8]} 48. gxh4
{[%clk 0:00:04.2]} 48... gxh4 {[%clk 0:00:10.7]} 49. Rg1+ {[%clk 0:00:03.9]}
49... Kf4 {[%clk 0:00:11]} 50. Rh1 {[%clk 0:00:03.7]} 50... Ke4 {[%clk 0:00:11]}
51. Rxh4+ {[%clk 0:00:03.3]} 51... Kd3 {[%clk 0:00:11.7]} 52. Rh2 {[%clk
0:00:01.4]} 52... Kxd4 {[%clk 0:00:11.3]} 0-1

[Event "Early-Titled-Tuesday-Blitz-January-30-2024"]
[Site "Chess.com"]
[Date "2024.01.30"]
[Round "3"]
[White "Rsnr"]
[Black "Baronessa08"]
[Result "1-0"]
[WhiteElo "2845"]
[BlackElo "2535"]
[TimeControl "180+1"]
[EndTime "8:31:11 PST"]
[Termination "Rsnr won by resignation"]

1. d4 {[%clk 0:02:57.4]} 1... d5 {[%clk 0:02:59.1]} 2. c4 {[%clk 0:02:52.6]}
2... dxc4 {[%clk 0:02:58.4]} 3. Nf3 {[%clk 0:02:39.2]} 3... Nf6 {[%clk
0:02:50.4]} 4. g3 {[%clk 0:02:39.1]} 4... c6 {[%clk 0:02:45]} 5. Bg2 {[%clk
0:02:38.6]} 5... Bf5 {[%clk 0:02:35.9]} 6. Ne5 {[%clk 0:02:29.2]} 6... e6 {[%clk
0:02:33.9]} 7. Nc3 {[%clk 0:01:51]} 7... h6 {[%clk 0:02:30.9]} 8. O-O {[%clk
0:01:49.2]} 8... Be7 {[%clk 0:02:24]} 9. Nxc4 {[%clk 0:01:46]} 9... O-O {[%clk
0:02:22.9]} 10. e4 {[%clk 0:01:45.8]} 10... Bh7 {[%clk 0:02:22]} 11. Re1 {[%clk
0:01:31.6]} 11... Nbd7 {[%clk 0:02:13.6]} 12. a4 {[%clk 0:01:23.3]} 12... Nb6
{[%clk 0:02:03]} 13. Ne5 {[%clk 0:01:21.9]} 13... Nbd7 {[%clk 0:01:55.1]} 14.
Nxd7 {[%clk 0:00:54.8]} 14... Qxd7 {[%clk 0:01:53.4]} 15. Be3 {[%clk 0:00:55.4]}
15... Rfd8 {[%clk 0:01:52.9]} 16. Qb3 {[%clk 0:00:54]} 16... Rab8 {[%clk
0:01:47.7]} 17. h3 {[%clk 0:00:53.8]} 17... a5 {[%clk 0:01:39.6]} 18. Bf4 {[%clk
0:00:30.4]} 18... Ra8 {[%clk 0:01:38.8]} 19. Rad1 {[%clk 0:00:30.8]} 19... Bb4
{[%clk 0:01:37.4]} 20. Qc4 {[%clk 0:00:26.6]} 20... b5 {[%clk 0:01:26.4]} 21.
Qa2 {[%clk 0:00:26.7]} 21... Rac8 {[%clk 0:01:14.8]} 22. Be5 {[%clk 0:00:26.4]}
22... Qe8 {[%clk 0:01:04.4]} 23. Rc1 {[%clk 0:00:14.8]} 23... Nd7 {[%clk
0:01:01.5]} 24. Bf4 {[%clk 0:00:15.3]} 24... Nb6 {[%clk 0:00:59.8]} 25. axb5
{[%clk 0:00:14.3]} 25... cxb5 {[%clk 0:01:00.7]} 26. Red1 {[%clk 0:00:14.4]}
26... Nc4 {[%clk 0:00:44.7]} 27. Ne2 {[%clk 0:00:13.2]} 27... Bf8 {[%clk
0:00:33.6]} 28. b3 {[%clk 0:00:12.1]} 28... Na3 {[%clk 0:00:33.5]} 29. Rxc8
{[%clk 0:00:10.7]} 29... Rxc8 {[%clk 0:00:33.4]} 30. Qd2 {[%clk 0:00:09.3]}
30... Bb4 {[%clk 0:00:31.9]} 31. Qd3 {[%clk 0:00:09.4]} 31... Bf8 {[%clk
0:00:22]} 32. Rc1 {[%clk 0:00:09.1]} 32... b4 {[%clk 0:00:21.5]} 33. Kh2 {[%clk
0:00:06.1]} 33... Rxc1 {[%clk 0:00:20.8]} 34. Bxc1 {[%clk 0:00:07]} 34... Qc8
{[%clk 0:00:21.2]} 35. Bf4 {[%clk 0:00:05.4]} 35... g5 {[%clk 0:00:19.6]} 36.
Be3 {[%clk 0:00:05.6]} 36... Nc2 {[%clk 0:00:19.9]} 37. Bd2 {[%clk 0:00:05.2]}
37... Be7 {[%clk 0:00:18.2]} 38. f4 {[%clk 0:00:05.2]} 38... Na3 {[%clk
0:00:12.9]} 39. fxg5 {[%clk 0:00:05.1]} 39... hxg5 {[%clk 0:00:13.8]} 40. Qf3
{[%clk 0:00:03.4]} 40... Qc2 {[%clk 0:00:13.1]} 41. Be1 {[%clk 0:00:03.9]} 41...
Nb5 {[%clk 0:00:12.2]} 42. d5 {[%clk 0:00:04.2]} 42... Nc3 {[%clk 0:00:10]} 43.
Nxc3 {[%clk 0:00:03.8]} 43... bxc3 {[%clk 0:00:09.5]} 44. Bxc3 {[%clk
0:00:03.4]} 44... Qxb3 {[%clk 0:00:07.5]} 45. dxe6 {[%clk 0:00:04]} 45... Qxe6
{[%clk 0:00:07.3]} 46. Qe3 {[%clk 0:00:04.1]} 46... a4 {[%clk 0:00:05.4]} 47.
Qd4 {[%clk 0:00:04.3]} 47... f6 {[%clk 0:00:04.7]} 48. Qxa4 {[%clk 0:00:04.6]}
48... Qc6 {[%clk 0:00:04.4]} 49. Qxc6 {[%clk 0:00:03.7]} 1-0

[Event "Early-Titled-Tuesday-Blitz-January-30-2024"]
[Site "Chess.com"]
[Date "2024.01.30"]
[Round "3"]
[White "ChessSkool"]
[Black "whitemirrorninja"]
[Result "1-0"]
[WhiteElo "2686"]
[BlackElo "2500"]
[TimeControl "180+1"]
[EndTime "8:31:11 PST"]
[Termination "ChessSkool won by checkmate"]

1. d4 {[%clk 0:03:00.9]} 1... f5 {[%clk 0:02:58.2]} 2. Nf3 {[%clk 0:02:58.6]}
2... Nf6 {[%clk 0:02:58.2]} 3. g3 {[%clk 0:02:59.3]} 3... b6 {[%clk 0:02:57.8]}
4. Bg2 {[%clk 0:03:00]} 4... Bb7 {[%clk 0:02:58]} 5. O-O {[%clk 0:03:00.8]} 5...
g6 {[%clk 0:02:58.2]} 6. b3 {[%clk 0:03:01.5]} 6... Bg7 {[%clk 0:02:58.3]} 7.
Bb2 {[%clk 0:03:02.3]} 7... O-O {[%clk 0:02:58.1]} 8. Nbd2 {[%clk 0:03:02.3]}
8... Ne4 {[%clk 0:02:47.9]} 9. c4 {[%clk 0:02:58.5]} 9... Nxd2 {[%clk
0:02:47.1]} 10. Qxd2 {[%clk 0:02:57.8]} 10... Be4 {[%clk 0:02:46.5]} 11. d5
{[%clk 0:02:53]} 11... Bxb2 {[%clk 0:02:24.9]} 12. Qxb2 {[%clk 0:02:53.9]} 12...
c6 {[%clk 0:02:25.1]} 13. Rfd1 {[%clk 0:02:47.5]} 13... cxd5 {[%clk 0:02:01.4]}
14. cxd5 {[%clk 0:02:48.4]} 14... Na6 {[%clk 0:01:35.3]} 15. b4 {[%clk
0:02:48.4]} 15... Rc8 {[%clk 0:01:26.7]} 16. Nd4 {[%clk 0:02:17.7]} 16... Bxg2
{[%clk 0:01:12.8]} 17. Kxg2 {[%clk 0:02:18.6]} 17... Qc7 {[%clk 0:01:12.2]} 18.
Rac1 {[%clk 0:02:09.5]} 18... Qb7 {[%clk 0:01:11.6]} 19. Qb3 {[%clk 0:02:04.8]}
19... Nc7 {[%clk 0:01:09.3]} 20. Nc6 {[%clk 0:01:39.6]} 20... Rf7 {[%clk
0:00:58.9]} 21. Ne5 {[%clk 0:01:08.2]} 21... Rf6 {[%clk 0:00:54.4]} 22. Nxd7
{[%clk 0:01:08.6]} 22... Rd6 {[%clk 0:00:55.1]} 23. Ne5 {[%clk 0:01:05]} 23...
Rcd8 {[%clk 0:00:54.6]} 24. Nc6 {[%clk 0:01:01.2]} 24... R8d7 {[%clk 0:00:54.5]}
25. f3 {[%clk 0:00:54.5]} 25... h5 {[%clk 0:00:21.5]} 26. e4 {[%clk 0:00:46.1]}
26... Kh7 {[%clk 0:00:21.6]} 27. Qc4 {[%clk 0:00:33.1]} 27... fxe4 {[%clk
0:00:18.3]} 28. fxe4 {[%clk 0:00:31.2]} 28... e6 {[%clk 0:00:18.8]} 29. Ne5
{[%clk 0:00:26.1]} 29... exd5 {[%clk 0:00:17.2]} 30. exd5 {[%clk 0:00:22.3]}
30... Rxd5 {[%clk 0:00:16.8]} 31. Rxd5 {[%clk 0:00:22]} 31... Qxd5+ {[%clk
0:00:16.2]} 32. Qxd5 {[%clk 0:00:22.1]} 32... Rxd5 {[%clk 0:00:16.9]} 33. Rxc7+
{[%clk 0:00:22.2]} 33... Kh6 {[%clk 0:00:17.7]} 34. Nf3 {[%clk 0:00:18.1]} 34...
a5 {[%clk 0:00:16.3]} 35. h4 {[%clk 0:00:18]} 35... g5 {[%clk 0:00:11.5]} 36.
hxg5+ {[%clk 0:00:14.1]} 36... Kg6 {[%clk 0:00:11.7]} 37. Rc6+ {[%clk
0:00:13.1]} 37... Kf5 {[%clk 0:00:12.4]} 38. Rf6+ {[%clk 0:00:12.9]} 38... Ke4
{[%clk 0:00:12.3]} 39. bxa5 {[%clk 0:00:10.1]} 39... Rxa5 {[%clk 0:00:13.2]} 40.
a4 {[%clk 0:00:09]} 40... b5 {[%clk 0:00:11.4]} 41. g6 {[%clk 0:00:08.4]} 41...
Ra8 {[%clk 0:00:06.4]} 42. axb5 {[%clk 0:00:08.4]} 42... h4 {[%clk 0:00:06.4]}
43. Nxh4 {[%clk 0:00:08.5]} 43... Rb8 {[%clk 0:00:05.9]} 44. b6 {[%clk
0:00:08.6]} 44... Ke5 {[%clk 0:00:05.8]} 45. Rf5+ {[%clk 0:00:08.9]} 45... Ke6
{[%clk 0:00:06.4]} 46. g7 {[%clk 0:00:09.6]} 46... Rg8 {[%clk 0:00:06]} 47. b7
{[%clk 0:00:09.8]} 47... Rb8 {[%clk 0:00:05.2]} 48. Rf8 {[%clk 0:00:10.1]} 48...
Rxb7 {[%clk 0:00:05.3]} 49. g8=Q+ {[%clk 0:00:10.6]} 49... Ke7 {[%clk
0:00:05.4]} 50. Rf7+ {[%clk 0:00:10.7]} 50... Ke6 {[%clk 0:00:05.5]} 51. Rxb7+
{[%clk 0:00:11]} 51... Ke5 {[%clk 0:00:06.2]} 52. Qg5+ {[%clk 0:00:10.5]} 52...
Kd6 {[%clk 0:00:07.1]} 53. Rb6+ {[%clk 0:00:09.9]} 53... Kc7 {[%clk 0:00:07]}
54. Qc5+ {[%clk 0:00:10.3]} 54... Kd7 {[%clk 0:00:07.2]} 55. Qd6+ {[%clk
0:00:10.8]} 55... Kc8 {[%clk 0:00:07]} 56. Rc6+ {[%clk 0:00:10.6]} 56... Kb7
{[%clk 0:00:07.3]} 57. Rc7+ {[%clk 0:00:11.3]} 57... Kb8 {[%clk 0:00:07.4]} 58.
Qd8# {[%clk 0:00:12.2]} 1-0

[Event "Early-Titled-Tuesday-Blitz-January-30-2024"]
[Site "Chess.com"]
[Date "2024.01.30"]
[Round "3"]
[White "ritanovikova"]
[Black "Pelopidass"]
[Result "0-1"]
[WhiteElo "2203"]
[BlackElo "2557"]
[TimeControl "180+1"]
[EndTime "8:31:11 PST"]
[Termination "Pelopidass won by resignation"]

1. e4 {[%clk 0:02:59]} 1... e6 {[%clk 0:02:59.5]} 2. d4 {[%clk 0:02:57.3]} 2...
d5 {[%clk 0:03:00.4]} 3. Nd2 {[%clk 0:02:57.7]} 3... Be7 {[%clk 0:03:00.1]} 4.
Ngf3 {[%clk 0:02:57.1]} 4... Nf6 {[%clk 0:02:58.1]} 5. e5 {[%clk 0:02:56.4]}
5... Nfd7 {[%clk 0:02:58.6]} 6. c3 {[%clk 0:02:56.6]} 6... c5 {[%clk 0:02:58.8]}
7. Nb3 {[%clk 0:02:56.9]} 7... Nc6 {[%clk 0:02:54.2]} 8. Bb5 {[%clk 0:02:54.6]}
8... Qb6 {[%clk 0:02:51.4]} 9. Bxc6 {[%clk 0:02:52.5]} 9... bxc6 {[%clk
0:02:52.3]} 10. O-O {[%clk 0:02:52.1]} 10... Ba6 {[%clk 0:02:37.6]} 11. Re1
{[%clk 0:02:50.5]} 11... Qb5 {[%clk 0:02:22.7]} 12. a4 {[%clk 0:02:41.2]} 12...
Qd3 {[%clk 0:02:07.9]} 13. Na5 {[%clk 0:02:12.9]} 13... Qxd1 {[%clk 0:02:02.6]}
14. Rxd1 {[%clk 0:02:12.3]} 14... Be2 {[%clk 0:02:01.1]} 15. Re1 {[%clk
0:02:06.8]} 15... Bxf3 {[%clk 0:02:01]} 16. gxf3 {[%clk 0:02:07.5]} 16... cxd4
{[%clk 0:02:01.2]} 17. Nxc6 {[%clk 0:02:02.6]} 17... dxc3 {[%clk 0:02:00.9]} 18.
bxc3 {[%clk 0:01:41.8]} 18... Nb6 {[%clk 0:01:41.3]} 19. a5 {[%clk 0:01:29.2]}
19... Nc4 {[%clk 0:01:41.2]} 20. a6 {[%clk 0:01:03.2]} 20... Bc5 {[%clk
0:01:27.7]} 21. Be3 {[%clk 0:00:58.4]} 21... Bxe3 {[%clk 0:01:20.6]} 22. fxe3
{[%clk 0:00:57.8]} 22... Kd7 {[%clk 0:01:21.1]} 23. Na5 {[%clk 0:00:27.7]} 23...
Nxe5 {[%clk 0:01:20.5]} 24. Rab1 {[%clk 0:00:26.6]} 24... Nxf3+ {[%clk
0:01:19.2]} 25. Kf2 {[%clk 0:00:24.5]} 25... Nxe1 {[%clk 0:01:19.2]} 26. Kxe1
{[%clk 0:00:25]} 26... Rab8 {[%clk 0:01:15.6]} 27. Nb7 {[%clk 0:00:25]} 27...
Rhc8 {[%clk 0:01:12.9]} 28. Kd2 {[%clk 0:00:24.9]} 28... Rc6 {[%clk 0:01:05.6]}
29. Rg1 {[%clk 0:00:24.5]} 29... g6 {[%clk 0:01:04.7]} 30. Rf1 {[%clk
0:00:24.1]} 30... Ke7 {[%clk 0:01:03.2]} 31. Ra1 {[%clk 0:00:22.1]} 31... h5
{[%clk 0:00:57.7]} 32. h4 {[%clk 0:00:21.4]} 32... Rc4 {[%clk 0:00:53.2]} 33.
Ra5 {[%clk 0:00:19.7]} 33... g5 {[%clk 0:00:43.6]} 34. hxg5 {[%clk 0:00:17.3]}
34... h4 {[%clk 0:00:43.6]} 35. Ra1 {[%clk 0:00:16.9]} 35... h3 {[%clk
0:00:41.9]} 36. Rh1 {[%clk 0:00:17.4]} 36... Rh8 {[%clk 0:00:38.7]} 37. Na5
{[%clk 0:00:17.1]} 37... Rc5 {[%clk 0:00:26.1]} 38. Nb7 {[%clk 0:00:08.5]} 38...
Rb5 {[%clk 0:00:24.1]} 39. Kd3 {[%clk 0:00:06.3]} 39... h2 {[%clk 0:00:23.5]}
40. Kd4 {[%clk 0:00:05.6]} 40... Rh4+ {[%clk 0:00:21]} 41. Kd3 {[%clk
0:00:05.8]} 41... Rb6 {[%clk 0:00:19.8]} 42. Nc5 {[%clk 0:00:05.4]} 42... Kd6
{[%clk 0:00:19.2]} 43. Na4 {[%clk 0:00:04.9]} 43... Rxa6 {[%clk 0:00:19.1]} 44.
Nb2 {[%clk 0:00:03.5]} 44... Ra2 {[%clk 0:00:19]} 45. Nd1 {[%clk 0:00:03.6]}
45... Ra1 {[%clk 0:00:18.2]} 46. Kc2 {[%clk 0:00:03.7]} 46... a5 {[%clk
0:00:16.9]} 47. Kb2 {[%clk 0:00:03.8]} 47... Rxd1 {[%clk 0:00:16.7]} 48. Rxd1
{[%clk 0:00:04.5]} 48... h1=Q {[%clk 0:00:16.5]} 49. Rd2 {[%clk 0:00:04.4]}
49... Rh2 {[%clk 0:00:15.9]} 0-1

[Event "Early-Titled-Tuesday-Blitz-January-30-2024"]
[Site "Chess.com"]
[Date "2024.01.30"]
[Round "3"]
[White "claudyna16"]
[Black "akinov-akinseye"]
[Result "1-0"]
[WhiteElo "2348"]
[BlackElo "1901"]
[TimeControl "180+1"]
[EndTime "8:31:11 PST"]
[Termination "claudyna16 won on time"]

1. c4 {[%clk 0:03:00.9]} 1... e5 {[%clk 0:02:55.3]} 2. g3 {[%clk 0:03:00.8]}
2... Nf6 {[%clk 0:02:52.6]} 3. Bg2 {[%clk 0:03:01.2]} 3... d5 {[%clk 0:02:53.1]}
4. cxd5 {[%clk 0:03:00.3]} 4... Nxd5 {[%clk 0:02:53.9]} 5. Nc3 {[%clk
0:03:00.7]} 5... Nb6 {[%clk 0:02:54.5]} 6. e3 {[%clk 0:03:00.6]} 6... Nc6 {[%clk
0:02:54.8]} 7. Nge2 {[%clk 0:03:00.9]} 7... Be7 {[%clk 0:02:55.1]} 8. O-O {[%clk
0:03:00.5]} 8... O-O {[%clk 0:02:53.7]} 9. f4 {[%clk 0:03:00.5]} 9... Rb8 {[%clk
0:02:42.5]} 10. fxe5 {[%clk 0:02:46.5]} 10... Nxe5 {[%clk 0:02:40.5]} 11. d4
{[%clk 0:02:46.4]} 11... Ng4 {[%clk 0:02:32.6]} 12. h3 {[%clk 0:02:29.8]} 12...
Nf6 {[%clk 0:02:30.7]} 13. e4 {[%clk 0:02:29.9]} 13... c6 {[%clk 0:02:30.4]} 14.
b3 {[%clk 0:02:25.6]} 14... Be6 {[%clk 0:02:28.9]} 15. Bf4 {[%clk 0:02:20]}
15... Rc8 {[%clk 0:02:25.3]} 16. Qd2 {[%clk 0:02:20.3]} 16... Qd7 {[%clk
0:02:21.6]} 17. Kh2 {[%clk 0:02:20.6]} 17... Rfd8 {[%clk 0:02:13.3]} 18. Rad1
{[%clk 0:02:18.8]} 18... Bb4 {[%clk 0:02:09.2]} 19. Qc2 {[%clk 0:02:09.6]} 19...
h6 {[%clk 0:02:02.5]} 20. Be5 {[%clk 0:01:53.8]} 20... Be7 {[%clk 0:01:57.1]}
21. Nf4 {[%clk 0:01:52.1]} 21... Qe8 {[%clk 0:01:45.1]} 22. Nxe6 {[%clk
0:01:50.8]} 22... fxe6 {[%clk 0:01:44.6]} 23. Qe2 {[%clk 0:01:47.5]} 23... Qh5
{[%clk 0:01:36.1]} 24. Qxh5 {[%clk 0:01:31.8]} 24... Nxh5 {[%clk 0:01:35.4]} 25.
h4 {[%clk 0:01:30.5]} 25... Nf6 {[%clk 0:01:33.8]} 26. Bh3 {[%clk 0:01:30.3]}
26... Kf7 {[%clk 0:01:11.1]} 27. Ne2 {[%clk 0:01:24.7]} 27... Nd7 {[%clk
0:00:55]} 28. Rde1 {[%clk 0:01:10.1]} 28... Nf8 {[%clk 0:00:41.9]} 29. g4 {[%clk
0:01:08.9]} 29... Kg8 {[%clk 0:00:36]} 30. g5 {[%clk 0:00:57]} 30... hxg5 {[%clk
0:00:34.7]} 31. hxg5 {[%clk 0:00:57.9]} 31... N6d7 {[%clk 0:00:28.3]} 32. Bf4
{[%clk 0:00:57.7]} 32... Re8 {[%clk 0:00:16.6]} 33. Bg4 {[%clk 0:00:56.8]} 33...
Nb6 {[%clk 0:00:15]} 34. Kg3 {[%clk 0:00:55.7]} 34... Rcd8 {[%clk 0:00:14.7]}
35. Rh1 {[%clk 0:00:47]} 35... Bd6 {[%clk 0:00:13.4]} 36. e5 {[%clk 0:00:42.9]}
36... Bb4 {[%clk 0:00:13]} 37. Ref1 {[%clk 0:00:38.6]} 37... Be7 {[%clk
0:00:11.1]} 38. Rf2 {[%clk 0:00:36.4]} 38... Nd5 {[%clk 0:00:10.7]} 39. Bc1
{[%clk 0:00:35.3]} 39... Bb4 {[%clk 0:00:09.2]} 40. Rfh2 {[%clk 0:00:26]} 40...
Nc3 {[%clk 0:00:08.1]} 41. Be3 {[%clk 0:00:19.2]} 41... Nxe2+ {[%clk 0:00:06.2]}
42. Rxe2 {[%clk 0:00:19.9]} 42... Bc3 {[%clk 0:00:04.1]} 43. Rd1 {[%clk
0:00:16.1]} 43... Bb4 {[%clk 0:00:02.7]} 44. Rh2 {[%clk 0:00:15.3]} 44... Be7
{[%clk 0:00:01.4]} 45. Rdh1 {[%clk 0:00:13.7]} 45... c5 {[%clk 0:00:01.5]} 46.
Rh8+ {[%clk 0:00:13.5]} 46... Kf7 {[%clk 0:00:00.9]} 47. Rf1+ {[%clk 0:00:13]}
1-0

[Event "Early-Titled-Tuesday-Blitz-January-30-2024"]
[Site "Chess.com"]
[Date "2024.01.30"]
[Round "3"]
[White "HeroWilczek"]
[Black "Iskusnyh"]
[Result "1/2-1/2"]
[WhiteElo "2489"]
[BlackElo "2663"]
[TimeControl "180+1"]
[EndTime "8:31:12 PST"]
[Termination "Game drawn by repetition"]

1. e4 {[%clk 0:03:00.9]} 1... e6 {[%clk 0:02:59.8]} 2. d4 {[%clk 0:03:00.4]}
2... d5 {[%clk 0:03:00.3]} 3. Nc3 {[%clk 0:03:01]} 3... Nf6 {[%clk 0:02:59.8]}
4. e5 {[%clk 0:02:58.8]} 4... Nfd7 {[%clk 0:02:59.3]} 5. f4 {[%clk 0:02:57.2]}
5... c5 {[%clk 0:02:59.5]} 6. Nf3 {[%clk 0:02:57.9]} 6... Nc6 {[%clk 0:03:00]}
7. Be3 {[%clk 0:02:57.8]} 7... Rb8 {[%clk 0:03:00.5]} 8. Be2 {[%clk 0:02:56.2]}
8... Qa5 {[%clk 0:02:58.8]} 9. O-O {[%clk 0:02:55.8]} 9... b5 {[%clk 0:02:58.5]}
10. dxc5 {[%clk 0:02:54]} 10... Bxc5 {[%clk 0:02:50.8]} 11. Bxc5 {[%clk
0:02:50.2]} 11... Nxc5 {[%clk 0:02:51.7]} 12. Nd4 {[%clk 0:02:35.7]} 12... Nxd4
{[%clk 0:02:45.6]} 13. Qxd4 {[%clk 0:02:36.6]} 13... b4 {[%clk 0:02:41.8]} 14.
Nd1 {[%clk 0:02:30.4]} 14... Qb6 {[%clk 0:02:29.4]} 15. a3 {[%clk 0:02:18.4]}
15... a5 {[%clk 0:02:14.6]} 16. axb4 {[%clk 0:02:17]} 16... axb4 {[%clk
0:02:13.6]} 17. Ne3 {[%clk 0:02:08.1]} 17... Ne4 {[%clk 0:01:54.2]} 18. Qxb6
{[%clk 0:02:07.3]} 18... Rxb6 {[%clk 0:01:55]} 19. Ra8 {[%clk 0:01:40.6]} 19...
O-O {[%clk 0:01:51.4]} 20. Rfa1 {[%clk 0:01:40.6]} 20... g6 {[%clk 0:01:36.8]}
21. Bd3 {[%clk 0:01:19.5]} 21... Nc5 {[%clk 0:01:31.9]} 22. Ng4 {[%clk
0:01:17.8]} 22... b3 {[%clk 0:01:28.3]} 23. Nf6+ {[%clk 0:01:12.7]} 23... Kg7
{[%clk 0:01:27.3]} 24. R8a5 {[%clk 0:00:58.2]} 24... Nd7 {[%clk 0:01:19.9]} 25.
Nxd7 {[%clk 0:00:53.1]} 25... Bxd7 {[%clk 0:01:19.2]} 26. c3 {[%clk 0:00:53.8]}
26... Rfb8 {[%clk 0:01:10.9]} 27. Kf2 {[%clk 0:00:53.5]} 27... h6 {[%clk
0:00:52.2]} 28. h4 {[%clk 0:00:49.9]} 28... Bb5 {[%clk 0:00:38.9]} 29. Bxb5
{[%clk 0:00:34.9]} 29... Rxb5 {[%clk 0:00:39.8]} 30. Ra7 {[%clk 0:00:35.6]}
30... Rc5 {[%clk 0:00:27]} 31. Rd7 {[%clk 0:00:32.9]} 31... Rc4 {[%clk
0:00:25.1]} 32. g3 {[%clk 0:00:28.1]} 32... g5 {[%clk 0:00:23.4]} 33. Raa7
{[%clk 0:00:24.7]} 33... Rf8 {[%clk 0:00:18.1]} 34. Ke3 {[%clk 0:00:18.2]} 34...
gxf4+ {[%clk 0:00:16.2]} 35. gxf4 {[%clk 0:00:19.1]} 35... Re4+ {[%clk
0:00:16.1]} 36. Kf3 {[%clk 0:00:19.2]} 36... Kg6 {[%clk 0:00:16.3]} 37. Rab7
{[%clk 0:00:18.6]} 37... f6 {[%clk 0:00:15.4]} 38. Rg7+ {[%clk 0:00:12.9]} 38...
Kh5 {[%clk 0:00:11.3]} 39. exf6 {[%clk 0:00:10.4]} 39... Rxf6 {[%clk 0:00:10.9]}
40. Rxb3 {[%clk 0:00:10]} 40... Rfxf4+ {[%clk 0:00:08.9]} 41. Kg3 {[%clk
0:00:10.7]} 41... Rxh4 {[%clk 0:00:07.7]} 42. Rb6 {[%clk 0:00:11.1]} 42... Re3+
{[%clk 0:00:07.2]} 43. Kg2 {[%clk 0:00:11.6]} 43... Rhe4 {[%clk 0:00:03]} 44.
Rbb7 {[%clk 0:00:07.8]} 44... Re2+ {[%clk 0:00:02.2]} 45. Kf3 {[%clk 0:00:08.4]}
45... R2e3+ {[%clk 0:00:02.2]} 46. Kf2 {[%clk 0:00:08.6]} 46... Re2+ {[%clk
0:00:03.1]} 47. Kf3 {[%clk 0:00:09.1]} 47... R2e3+ {[%clk 0:00:04]} 48. Kf2
{[%clk 0:00:09.8]} 48... Re2+ {[%clk 0:00:04.3]} 49. Kf3 {[%clk 0:00:10.2]}
1/2-1/2